bitfinex/quotes_BTCUSD_20240703
["timestamp","ask_amount","ask_price","bid_price","bid_amount"]
[1719989096893,0.38422685,61127.0,61126.0,0.002924]
[1719989097462,0.48002685,61127.0,61126.0,0.002924]
[1719989097678,0.38422685,61127.0,61126.0,0.002924]
[1719989097879,0.31162685,61127.0,61126.0,0.002924]
[1719989099463,0.31162685,61127.0,61126.0,0.04648624]
[1719989099716,0.16969939,61127.0,61126.0,0.293324]
[1719989099961,0.06969939,61127.0,61126.0,0.293324]
[1719989100229,0.16735913,61127.0,61126.0,0.293324]
[1719989100472,0.16035913,61127.0,61126.0,0.292324]
[1719989100688,0.16735913,61127.0,61126.0,0.293324]
[1719989101155,0.16035913,61127.0,61126.0,0.292324]
[1719989101355,0.16035913,61127.0,61126.0,0.126324]
[1719989101560,0.16235913,61127.0,61126.0,0.126324]
[1719989101713,0.16235913,61127.0,61126.0,0.125324]
[1719989101913,0.15835913,61127.0,61126.0,0.125324]
[1719989102115,0.16135913,61127.0,61126.0,0.000924]
[1719989102349,0.25258658,61127.0,61126.0,0.000924]
[1719989102541,0.105,61127.0,61126.0,0.000924]
[1719989102759,0.25248255,61127.0,61126.0,0.000924]
[1719989103367,1.07444855,61127.0,61126.0,0.000924]
[1719989104421,1.21874552,61127.0,61126.0,0.000924]
[1719989104664,1.20578552,61127.0,61126.0,0.000924]
[1719989104864,1.25578552,61127.0,61126.0,0.000924]
[1719989105140,1.31682707,61127.0,61126.0,0.000924]
[1719989105938,1.16830297,61127.0,61126.0,0.000924]
[1719989106119,0.98979742,61127.0,61126.0,0.000924]
[1719989106554,0.98979771,61127.0,61126.0,0.000924]
[1719989106960,1.31544835,61127.0,61126.0,0.000924]
[1719989107308,0.06,61124.0,61123.0,0.000924]
[1719989107514,0.77129704,61124.0,61123.0,0.000924]
[1719989107647,0.06,61123.0,61122.0,0.05]
[1719989107843,2.99538404,61123.0,61122.0,0.05]
[1719989108042,2.69350404,61123.0,61122.0,0.05]
[1719989108268,2.79350404,61123.0,61122.0,0.05]
[1719989109077,2.88495361,61123.0,61122.0,0.05]
[1719989109465,2.41882761,61123.0,61122.0,0.05]
[1719989110258,2.42182761,61123.0,61122.0,0.051]
[1719989110712,2.42182761,61123.0,61122.0,0.052]
[1719989110915,2.45666799,61123.0,61122.0,0.052]
[1719989112045,2.45746098,61123.0,61122.0,0.052]
[1719989112529,2.45745028,61123.0,61122.0,0.052]
[1719989112776,2.45745028,61123.0,61112.0,0.009218]
[1719989112777,0.06,61119.0,61112.0,0.009218]
[1719989112991,0.0958,61113.0,61112.0,0.009218]
[1719989113194,0.15273999,61113.0,61112.0,0.009218]
[1719989113414,0.25273999,61113.0,61112.0,0.009218]
[1719989114018,0.25273999,61113.0,61112.0,0.010218]
[1719989115077,0.15693999,61113.0,61112.0,0.69362371]
[1719989115303,0.05693999,61113.0,61112.0,0.85292251]
[1719989115523,0.005,61119.0,61117.0,0.06]
[1719989115739,0.48093494,61128.0,61121.0,0.299708]
[1719989115958,0.03723558,61126.0,61123.0,0.08015582]
[1719989116191,0.0958,61124.0,61123.0,0.08015582]
[1719989116410,0.58281277,61129.0,61127.0,0.283]
[1719989116411,0.51725277,61129.0,61127.0,0.283]
[1719989116657,0.13303661,61128.0,61127.0,0.283]
[1719989117534,0.13303661,61128.0,61127.0,0.582708]
[1719989117663,0.13303661,61128.0,61127.0,0.65499438]
[1719989118670,0.0958,61128.0,61127.0,0.65499438]
[1719989118866,0.13311291,61128.0,61127.0,0.65499438]
[1719989119161,0.13311291,61128.0,61127.0,0.58241414]
[1719989119336,0.2329729,61128.0,61127.0,0.58241414]
[1719989119715,0.2329729,61128.0,61127.0,0.58341414]
[1719989119929,0.1401729,61128.0,61127.0,0.58341414]
[1719989120138,0.2359729,61128.0,61127.0,0.58241414]
[1719989120384,0.2399729,61128.0,61127.0,0.71467114]
[1719989120567,0.1441729,61128.0,61127.0,0.80271294]
[1719989120860,0.007,61128.0,61127.0,0.80271294]
[1719989121824,0.003,61128.0,61127.0,0.80271294]
[1719989122020,0.0958,61131.0,61130.0,0.359708]
[1719989122278,0.0958,61131.0,61130.0,0.8220068]
[1719989122419,0.00084,61135.0,61134.0,0.2844]
[1719989122620,0.133219,61135.0,61134.0,0.44796985]
[1719989122923,0.233219,61135.0,61134.0,0.4446988]
[1719989123471,0.19664,61135.0,61134.0,0.7444068]
[1719989123620,0.23325047,61135.0,61134.0,0.7544068]
[1719989123829,0.23425047,61135.0,61134.0,0.7644068]
[1719989124570,0.19764,61135.0,61134.0,0.7644068]
[1719989124784,0.09764,61135.0,61134.0,0.7644068]
[1719989125161,0.09764,61135.0,61134.0,0.8244068]
[1719989125624,0.09764,61135.0,61134.0,0.7644068]
[1719989138310,0.09764,61135.0,61134.0,0.02]
[1719989138514,0.13430639,61135.0,61134.0,0.02]
[1719989138746,0.23430639,61135.0,61134.0,0.02]
[1719989142100,0.24531122,61135.0,61134.0,0.02]
[1719989144466,0.33516582,61135.0,61134.0,0.02]
[1719989144693,0.19764,61135.0,61134.0,0.02]
[1719989144916,0.34220015,61135.0,61134.0,0.02]
[1719989145280,0.19764,61135.0,61134.0,0.02]
[1719989145523,0.34230159,61135.0,61134.0,0.02]
[1719989148149,0.19764,61135.0,61134.0,0.02]
[1719989148313,0.34232437,61135.0,61134.0,0.02]
[1719989149068,0.44812057,61135.0,61134.0,0.02]
[1719989149502,0.34232437,61135.0,61134.0,0.02]
[1719989151359,0.19764,61135.0,61134.0,0.02]
[1719989151504,0.34279368,61135.0,61134.0,0.02]
[1719989157747,0.20781976,61135.0,61134.0,0.02]
[1719989157945,0.33255526,61135.0,61134.0,0.02]
[1719989158153,0.34273298,61135.0,61134.0,0.02]
[1719989158397,0.34270621,61135.0,61134.0,0.02]
[1719989160189,0.85985221,61135.0,61134.0,0.02]
[1719989160700,0.06,61129.0,61127.0,0.000924]
[1719989160874,1.00270895,61128.0,61127.0,0.000924]
[1719989161193,0.53919683,61128.0,61127.0,0.000924]
[1719989161555,0.62980901,61128.0,61127.0,0.000924]
[1719989162362,0.62980901,61128.0,61127.0,0.011924]
[1719989162862,0.62980901,61128.0,61127.0,0.022924]
[1719989163092,0.63080901,61128.0,61127.0,0.022924]
[1719989163553,0.62980901,61128.0,61127.0,0.011924]
[1719989163792,0.64106259,61128.0,61127.0,0.000924]
[1719989164020,0.70106259,61128.0,61127.0,0.000924]
[1719989164239,0.70506259,61128.0,61127.0,0.000924]
[1719989164460,0.70106259,61128.0,61127.0,0.000924]
[1719989165099,0.70506259,61128.0,61127.0,0.000924]
[1719989165372,0.22882285,61128.0,61127.0,0.000924]
[1719989165566,0.15239929,61128.0,61127.0,0.000924]
[1719989165796,1.47689929,61128.0,61127.0,0.000924]
[1719989166224,1.57269929,61128.0,61127.0,0.000924]
[1719989166644,1.54134229,61128.0,61127.0,0.000924]
[1719989167051,1.53518362,61128.0,61127.0,0.000924]
[1719989167466,1.63518362,61128.0,61127.0,0.000924]
[1719989169394,1.53938362,61128.0,61127.0,0.000924]
[1719989169653,0.55039862,61128.0,61127.0,0.000924]
[1719989170332,0.404158,61128.0,61127.0,0.000924]
[1719989170537,0.55052172,61128.0,61127.0,0.000924]
[1719989170959,0.59568626,61128.0,61127.0,0.000924]
[1719989171280,0.59652626,61128.0,61127.0,0.000924]
[1719989171479,0.66208926,61128.0,61127.0,0.000924]
[1719989173618,0.66185936,61128.0,61127.0,0.000924]
[1719989175485,0.67448772,61128.0,61127.0,0.000924]
[1719989176976,0.51571189,61128.0,61127.0,0.000924]
[1719989177166,0.67462334,61128.0,61127.0,0.000924]
[1719989178524,0.62729934,61128.0,61127.0,0.000924]
[1719989180213,0.46838789,61128.0,61121.0,0.30127982]
[1719989180438,0.0958,61122.0,61121.0,0.30127982]
[1719989180657,0.15983832,61122.0,61121.0,0.29627982]
[1719989180870,0.25983832,61122.0,61121.0,0.29627982]
[1719989181321,0.25983832,61122.0,61121.0,0.23627982]
[1719989181753,0.35550992,61122.0,61121.0,0.24027982]
[1719989182700,0.35550992,61122.0,61121.0,0.160124]
[1719989183369,0.35550992,61122.0,61121.0,0.165124]
[1719989184085,0.35516832,61122.0,61121.0,0.165124]
[1719989184526,0.35516832,61122.0,61121.0,0.161124]
[1719989184757,0.35516832,61122.0,61121.0,0.163124]
[1719989185426,0.35516832,61122.0,61121.0,0.158124]
[1719989185879,0.35516832,61122.0,61121.0,0.160124]
[1719989186375,0.35516832,61122.0,61121.0,0.158124]
[1719989186569,0.35516832,61122.0,61121.0,0.160124]
[1719989186811,0.1958,61122.0,61121.0,0.160124]
[1719989187048,0.35568931,61122.0,61121.0,0.160124]
[1719989189289,0.35558388,61122.0,61121.0,0.160124]
[1719989190065,0.1958,61122.0,61121.0,0.220124]
[1719989190264,0.25567197,61122.0,61121.0,0.220124]
[1719989190463,0.35567197,61122.0,61121.0,0.220124]
[1719989192204,0.25987197,61122.0,61121.0,0.220124]
[1719989192410,0.35567197,61122.0,61121.0,0.220124]
[1719989193043,0.34278099,61122.0,61121.0,0.220124]
[1719989193240,0.3558273,61122.0,61121.0,0.220124]
[1719989193627,0.35580426,61122.0,61121.0,0.220124]
[1719989197453,0.35522017,61122.0,61121.0,0.220124]
[1719989197793,0.35522017,61122.0,61121.0,0.160124]
[1719989197999,0.35522017,61122.0,61121.0,0.220124]
[1719989199822,0.35522017,61122.0,61121.0,0.160124]
[1719989200044,0.29132736,61122.0,61121.0,0.160124]
[1719989200241,0.3551235,61122.0,61121.0,0.160124]
[1719989200440,0.3551235,61122.0,61121.0,0.220124]
[1719989200878,0.3551235,61122.0,61121.0,0.160124]
[1719989201748,0.3551235,61122.0,61121.0,0.004]
[1719989202583,0.52055339,61122.0,61120.0,0.126]
[1719989202789,0.2593235,61121.0,61120.0,0.126]
[1719989203373,0.1,61121.0,61120.0,0.126]
[1719989203635,0.25991858,61121.0,61120.0,0.126]
[1719989204433,0.25991858,61121.0,61120.0,0.186]
[1719989204657,0.4254176,61121.0,61120.0,0.186]
[1719989205078,0.4254176,61121.0,61120.0,0.26615582]
[1719989205616,0.25991858,61121.0,61120.0,0.26615582]
[1719989206578,0.25991858,61121.0,61120.0,0.26715582]
[1719989206777,0.26011252,61121.0,61120.0,0.26715582]
[1719989208225,0.42577186,61121.0,61120.0,0.26715582]
[1719989208431,0.52157186,61121.0,61120.0,0.26715582]
[1719989208602,0.52157186,61121.0,61120.0,0.26460373]
[1719989208813,0.35591252,61121.0,61120.0,0.26460373]
[1719989210038,0.1958,61121.0,61120.0,0.26460373]
[1719989210225,0.35696944,61121.0,61120.0,0.26460373]
[1719989210566,0.35143398,61121.0,61120.0,0.26460373]
[1719989211277,0.51711335,61121.0,61120.0,0.26460373]
[1719989212378,0.55969304,61121.0,61120.0,0.26460373]
[1719989213268,0.23284409,61121.0,61120.0,0.26460373]
[1719989213491,0.55971648,61121.0,61120.0,0.26460373]
[1719989215056,0.55971648,61121.0,61120.0,0.18444791]
[1719989216408,0.39855372,61121.0,61120.0,0.18444791]
[1719989216650,0.55970193,61121.0,61120.0,0.18444791]
[1719989219337,0.55970193,61121.0,61120.0,0.26460373]
[1719989219784,0.23284409,61121.0,61120.0,0.26460373]
[1719989219988,0.55964103,61121.0,61120.0,0.26460373]
[1719989220568,0.39389339,61121.0,61120.0,0.001]
[1719989220993,0.39389339,61121.0,61118.0,0.1347]
[1719989220994,0.009,61120.0,61118.0,0.1347]
[1719989221141,0.32679176,61119.0,61118.0,0.1347]
[1719989221543,0.52259176,61119.0,61118.0,0.1347]
[1719989222317,0.52261394,61119.0,61118.0,0.1347]
[1719989222767,0.1978,61119.0,61118.0,0.1347]
[1719989222975,0.53705157,61119.0,61118.0,0.1347]
[1719989223537,0.53705157,61119.0,61118.0,0.1947]
[1719989223738,0.53805157,61119.0,61118.0,0.1947]
[1719989224002,0.44225157,61119.0,61118.0,0.1947]
[1719989224136,0.53805157,61119.0,61118.0,0.3642]
[1719989225369,0.37228964,61119.0,61118.0,0.3642]
[1719989225572,0.52263192,61119.0,61118.0,0.3642]
[1719989225793,0.54186027,61119.0,61118.0,0.3642]
[1719989226152,0.54206922,61119.0,61118.0,0.3642]
[1719989228763,0.54305653,61119.0,61118.0,0.3642]
[1719989229751,0.28149779,61119.0,61118.0,0.3642]
[1719989229946,0.37729779,61119.0,61118.0,0.3642]
[1719989232057,0.37774396,61119.0,61118.0,0.3642]
[1719989234593,0.37774396,61119.0,61116.0,0.359708]
[1719989234799,0.0958,61117.0,61116.0,0.359708]
[1719989235041,0.17331434,61117.0,61116.0,0.359708]
[1719989235383,0.1958,61117.0,61116.0,0.359708]
[1719989235533,0.37471316,61117.0,61116.0,0.359708]
[1719989235940,0.37511039,61117.0,61116.0,0.359708]
[1719989238094,0.37511039,61117.0,61116.0,0.360708]
[1719989238701,0.37485823,61117.0,61116.0,0.360708]
[1719989239135,0.37490869,61117.0,61116.0,0.361632]
[1719989239684,0.37490869,61117.0,61116.0,0.001924]
[1719989239915,0.5406077,61117.0,61116.0,0.001924]
[1719989240090,0.37490869,61117.0,61116.0,0.001924]
[1719989241092,0.5406094,61117.0,61116.0,0.001924]
[1719989241306,0.4448094,61117.0,61116.0,0.001924]
[1719989241518,0.5406094,61117.0,61116.0,0.001924]
[1719989241739,0.1958,61117.0,61116.0,0.001924]
[1719989241931,0.49618063,61117.0,61116.0,0.001924]
[1719989242137,0.56085369,61117.0,61116.0,0.001924]
[1719989243207,0.41325747,61117.0,61116.0,0.001924]
[1719989243600,0.41325747,61117.0,61112.0,0.009218]
[1719989243601,0.000292,61113.0,61112.0,0.009218]
[1719989244065,0.000292,61113.0,61096.0,0.06]
[1719989244066,0.0181,61109.0,61096.0,0.06]
[1719989244085,0.16563722,61102.0,61097.0,0.06]
[1719989244445,0.0958,61098.0,61097.0,0.06]
[1719989244454,0.12295167,61098.0,61097.0,0.06]
[1719989244642,0.12295167,61098.0,61097.0,0.3519]
[1719989244643,0.39515747,61098.0,61097.0,0.3519]
[1719989245004,0.1958,61098.0,61097.0,0.3519]
[1719989245221,0.28552178,61098.0,61097.0,0.3519]
[1719989246241,0.28552178,61098.0,61097.0,0.3529]
[1719989246835,0.28552178,61098.0,61097.0,0.8129068]
[1719989246836,0.19372178,61098.0,61097.0,0.8129068]
[1719989247028,0.09372178,61098.0,61097.0,0.8129068]
[1719989247430,0.09372178,61098.0,61097.0,0.8119068]
[1719989247630,0.18952178,61098.0,61097.0,0.8119068]
[1719989247833,0.29252178,61098.0,61097.0,0.8119068]
[1719989248029,0.19672178,61098.0,61097.0,0.8119068]
[1719989248365,0.29252178,61098.0,61097.0,0.8119068]
[1719989248472,0.2919099,61098.0,61097.0,0.8119068]
[1719989248988,0.29191041,61098.0,61097.0,0.8119068]
[1719989249892,0.28891041,61098.0,61097.0,0.8119068]
[1719989250074,0.28591041,61098.0,61097.0,0.8209068]
[1719989250286,0.28691041,61098.0,61097.0,0.8289068]
[1719989250893,0.19111041,61098.0,61097.0,0.8289068]
[1719989251091,0.09111041,61098.0,61097.0,0.8289068]
[1719989251509,0.002,61098.0,61097.0,0.8289068]
[1719989251698,0.09085535,61098.0,61097.0,0.8289068]
[1719989252667,0.09085535,61098.0,61097.0,0.8589068]
[1719989253230,0.44662131,61098.0,61097.0,0.376708]
[1719989253439,0.28777031,61098.0,61097.0,0.690608]
[1719989254152,0.28577031,61098.0,61097.0,0.673608]
[1719989254931,0.28577031,61098.0,61097.0,0.1997]
[1719989254932,0.28801945,61098.0,61097.0,0.1997]
[1719989255682,0.28801945,61098.0,61097.0,0.2007]
[1719989256058,0.28801945,61098.0,61097.0,0.061]
[1719989256267,0.28801945,61098.0,61097.0,0.06]
[1719989256727,0.28801945,61098.0,61097.0,0.14015582]
[1719989256986,0.29001945,61098.0,61097.0,0.15215582]
[1719989257515,0.29001945,61098.0,61097.0,0.28465582]
[1719989258250,0.29052845,61098.0,61097.0,0.28465582]
[1719989261536,0.29042136,61098.0,61097.0,0.28465582]
[1719989262098,0.29042054,61098.0,61097.0,0.28465582]
[1719989264435,0.32916259,61098.0,61097.0,0.012]
[1719989264639,0.29042054,61098.0,61097.0,0.072]
[1719989264957,0.29042547,61098.0,61097.0,0.072]
[1719989265260,0.39834022,61098.0,61097.0,0.15215582]
[1719989265481,0.1978,61098.0,61097.0,0.15215582]
[1719989265675,0.29850827,61098.0,61097.0,0.15215582]
[1719989265955,0.39850827,61098.0,61097.0,0.15215582]
[1719989266618,0.39850827,61098.0,61097.0,0.89676262]
[1719989266619,0.30270827,61098.0,61097.0,0.89676262]
[1719989266820,0.19479353,61098.0,61097.0,0.92676262]
[1719989268168,0.19295172,61098.0,61097.0,0.92676262]
[1719989268369,0.09295172,61098.0,61097.0,0.92676262]
[1719989268602,0.19295172,61098.0,61097.0,0.92676262]
[1719989269672,0.09295172,61098.0,61097.0,0.92676262]
[1719989270884,0.09295172,61098.0,61097.0,0.98727619]
[1719989271548,0.09317751,61098.0,61097.0,0.97827619]
[1719989272761,0.09317751,61098.0,61097.0,0.91776262]
[1719989274751,0.002,61098.0,61097.0,0.91776262]
[1719989274954,0.002,61098.0,61097.0,0.88776262]
[1719989275358,0.02859362,61098.0,61097.0,0.88868662]
[1719989275583,0.09272483,61098.0,61097.0,0.88868662]
[1719989275815,0.09356483,61098.0,61097.0,0.91868662]
[1719989277679,0.00992693,61101.0,61100.0,0.03]
[1719989277879,0.0088,61111.0,61110.0,0.06]
[1719989278077,0.21168119,61111.0,61108.0,0.359708]
[1719989278283,0.0958,61109.0,61108.0,0.359708]
[1719989279754,0.21088119,61109.0,61108.0,0.360708]
[1719989280187,0.31088119,61109.0,61108.0,0.360708]
[1719989280977,0.30249127,61109.0,61108.0,0.360708]
[1719989281570,0.31149127,61109.0,61108.0,0.361708]
[1719989285215,0.21569127,61109.0,61108.0,0.361708]
[1719989285413,0.31149127,61109.0,61108.0,0.361708]
[1719989285798,0.36609666,61109.0,61108.0,0.361708]
[1719989286780,0.41654383,61109.0,61108.0,0.002]
[1719989286980,0.37489666,61109.0,61108.0,0.002]
[1719989287396,0.37354479,61109.0,61108.0,0.002]
[1719989287823,0.2216,61109.0,61108.0,0.002]
[1719989287945,0.23291715,61109.0,61108.0,0.002]
[1719989288154,0.32871715,61109.0,61108.0,0.002]
[1719989289935,0.32871715,61109.0,61108.0,0.001]
[1719989290137,0.23291715,61109.0,61108.0,0.001]
[1719989290360,0.32871715,61109.0,61108.0,0.001]
[1719989290462,0.29331591,61109.0,61108.0,0.001]
[1719989290675,0.66849591,61109.0,61108.0,0.001]
[1719989290893,1.47700591,61109.0,61108.0,0.001]
[1719989291135,1.48942291,61109.0,61108.0,0.001]
[1719989291332,1.45645191,61109.0,61108.0,0.002]
[1719989291732,1.44845191,61109.0,61105.0,0.08015582]
[1719989291964,0.0958,61106.0,61105.0,0.08015582]
[1719989292136,0.1059936,61106.0,61105.0,0.08015582]
[1719989292343,0.2059936,61106.0,61105.0,0.08015582]
[1719989293383,0.29331591,61106.0,61105.0,0.08015582]
[1719989293584,0.29331591,61106.0,61105.0,0.14015582]
[1719989293987,0.29331591,61106.0,61105.0,0.08015582]
[1719989295537,0.29431591,61106.0,61105.0,0.08015582]
[1719989295973,0.33600846,61106.0,61105.0,0.08015582]
[1719989296304,0.33600846,61106.0,61100.0,0.06]
[1719989296507,0.0958,61101.0,61100.0,0.06]
[1719989296715,0.14768615,61101.0,61100.0,0.06]
[1719989296959,0.24768615,61101.0,61100.0,0.06]
[1719989297166,0.1958,61101.0,61100.0,0.06]
[1719989297452,0.33502136,61101.0,61100.0,0.06]
[1719989297791,0.33502136,61101.0,61100.0,0.065]
[1719989299235,0.33555077,61101.0,61100.0,0.065]
[1719989299816,0.33555077,61101.0,61100.0,0.005]
[1719989300136,0.33555077,61101.0,61100.0,0.07]
[1719989300333,0.33555077,61101.0,61100.0,0.01]
[1719989300536,0.33541008,61101.0,61100.0,0.07]
[1719989300961,0.33540943,61101.0,61100.0,0.07]
[1719989301316,0.33540943,61101.0,61100.0,0.065]
[1719989301483,0.33740943,61101.0,61100.0,0.3615]
[1719989301629,0.33740943,61101.0,61100.0,0.3565]
[1719989301960,0.33840943,61101.0,61100.0,0.3565]
[1719989302625,0.33740943,61101.0,61100.0,0.06]
[1719989302762,0.33540943,61101.0,61100.0,0.064]
[1719989303208,0.33540943,61101.0,61100.0,0.068]
[1719989303460,0.33540943,61101.0,61100.0,0.008]
[1719989303667,0.33547574,61101.0,61100.0,0.008]
[1719989304962,0.33547574,61101.0,61098.0,0.06]
[1719989305186,0.0958,61099.0,61098.0,0.06]
[1719989305383,0.15927049,61099.0,61097.0,0.000924]
[1719989305577,0.15207049,61098.0,61097.0,0.060924]
[1719989305783,0.05207049,61098.0,61097.0,0.000924]
[1719989305990,0.15207049,61098.0,61097.0,0.060924]
[1719989306943,0.15200141,61098.0,61097.0,0.060924]
[1719989307363,0.14180924,61098.0,61097.0,0.060924]
[1719989308471,0.23760924,61098.0,61097.0,0.065924]
[1719989309655,0.23760924,61098.0,61097.0,0.236824]
[1719989309826,0.23760924,61098.0,61097.0,0.374424]
[1719989310195,0.1958,61098.0,61097.0,0.379424]
[1719989310400,0.13029443,61098.0,61097.0,0.379424]
[1719989310749,0.23029443,61098.0,61097.0,0.379424]
[1719989313574,0.1958,61098.0,61097.0,0.379424]
[1719989313792,0.1303555,61098.0,61097.0,0.379424]
[1719989314018,0.1958,61098.0,61097.0,0.379424]
[1719989314167,0.2303555,61098.0,61097.0,0.75627829]
[1719989314345,0.1345555,61098.0,61097.0,0.75627829]
[1719989314593,0.1345555,61098.0,61097.0,0.94657709]
[1719989315111,0.0345555,61098.0,61097.0,0.94657709]
[1719989316299,0.1,61106.0,61105.0,0.06]
[1719989316499,0.13369404,61106.0,61105.0,0.3565]
[1719989316722,0.13369404,61106.0,61105.0,0.656208]
[1719989316723,0.13369355,61106.0,61105.0,0.656208]
[1719989317542,0.13869355,61106.0,61105.0,0.656208]
[1719989317749,0.03869355,61106.0,61105.0,0.656208]
[1719989317976,0.03369355,61106.0,61105.0,0.656208]
[1719989318183,0.03369355,61106.0,61105.0,0.657208]
[1719989318551,0.13369355,61106.0,61105.0,0.656208]
[1719989318788,0.13369355,61106.0,61105.0,0.661208]
[1719989319173,0.13869355,61106.0,61105.0,0.7303288]
[1719989319560,0.13369355,61106.0,61105.0,0.7303288]
[1719989319735,0.03369355,61106.0,61105.0,0.7303288]
[1719989319936,0.03369355,61106.0,61105.0,0.666208]
[1719989320156,0.03351495,61106.0,61105.0,0.666208]
[1719989322851,0.03351495,61106.0,61105.0,0.8265068]
[1719989323216,0.16648046,61120.0,61119.0,0.663108]
[1719989323217,0.00084,61120.0,61119.0,0.663108]
[1719989323486,0.00084,61120.0,61119.0,0.758908]
[1719989323508,0.00084,61120.0,61119.0,0.8234068]
[1719989323953,0.00084,61120.0,61119.0,0.663108]
[1719989324356,0.40987,61120.0,61119.0,0.663108]
[1719989324693,0.573482,61120.0,61119.0,0.663108]
[1719989325476,0.573482,61120.0,61119.0,0.670108]
[1719989326069,0.327224,61120.0,61119.0,0.670108]
[1719989326272,0.40903,61120.0,61119.0,0.670108]
[1719989326477,0.50903,61120.0,61119.0,0.670108]
[1719989327080,0.50903,61120.0,61119.0,0.663108]
[1719989327670,0.50903,61120.0,61119.0,0.686108]
[1719989327873,0.50903,61120.0,61119.0,0.674108]
[1719989328469,0.50903,61120.0,61119.0,0.686108]
[1719989329603,0.50903,61120.0,61119.0,0.674108]
[1719989330878,0.50903,61120.0,61119.0,0.663108]
[1719989331068,0.50903,61120.0,61119.0,0.687108]
[1719989331349,0.50903,61120.0,61119.0,0.675108]
[1719989331754,0.50903,61120.0,61119.0,0.687108]
[1719989332621,0.50903,61120.0,61119.0,0.675108]
[1719989333224,0.60483,61120.0,61119.0,0.687108]
[1719989334545,0.60483,61120.0,61119.0,0.675108]
[1719989334756,0.60483,61120.0,61119.0,0.663108]
[1719989334928,0.60483,61120.0,61119.0,0.689108]
[1719989336209,0.60483,61120.0,61119.0,0.677108]
[1719989336560,0.60483,61120.0,61119.0,0.691108]
[1719989338686,0.50903,61120.0,61119.0,0.691108]
[1719989339031,0.60483,61120.0,61119.0,0.691108]
[1719989339375,0.50903,61120.0,61119.0,0.691108]
[1719989339578,0.60483,61120.0,61119.0,0.691108]
[1719989342330,0.63103657,61120.0,61119.0,0.691108]
[1719989342943,0.60483,61120.0,61119.0,0.691108]
[1719989343157,0.53525899,61120.0,61119.0,0.691108]
[1719989343363,0.63105899,61120.0,61119.0,0.691108]
[1719989344792,0.53525899,61120.0,61119.0,0.77123438]
[1719989344997,0.50903,61120.0,61119.0,0.96153318]
[1719989345384,0.50903,61120.0,61119.0,0.93153318]
[1719989345987,0.672642,61120.0,61119.0,0.93153318]
[1719989346396,0.672642,61120.0,61119.0,0.8514068]
[1719989346595,0.672642,61120.0,61119.0,0.8504068]
[1719989347077,0.00084,61142.0,61127.0,0.059]
[1719989347289,0.163558,61141.0,61127.0,0.92863385]
[1719989347481,0.0958,61138.0,61127.0,0.92536262]
[1719989347658,0.0958,61138.0,61127.0,1.07116182]
[1719989348711,0.0958,61136.0,61127.0,1.07116182]
[1719989349291,0.0958,61136.0,61127.0,1.07816182]
[1719989349973,0.0958,61136.0,61127.0,1.08416182]
[1719989350507,0.1,61140.0,61127.0,0.8282068]
[1719989350702,0.09664,61128.0,61127.0,0.371708]
[1719989350835,0.09664,61128.0,61127.0,0.36831598]
[1719989352678,0.2567437,61128.0,61127.0,0.36831598]
[1719989352857,0.3567437,61128.0,61127.0,0.36831598]
[1719989353060,0.3659437,61128.0,61127.0,0.06860798]
[1719989353264,0.3659437,61128.0,61117.0,0.35531598]
[1719989353265,0.5356437,61128.0,61117.0,0.35531598]
[1719989353628,0.1278037,61127.0,61118.0,0.299708]
[1719989353783,0.2398,61119.0,61118.0,0.299708]
[1719989353987,0.1,61127.0,61119.0,0.05560798]
[1719989354185,0.2398,61120.0,61119.0,0.05560798]
[1719989354384,0.36692182,61120.0,61119.0,0.05560798]
[1719989356244,0.36692182,61120.0,61119.0,0.1357638]
[1719989357440,0.36692182,61120.0,61119.0,0.08515582]
[1719989357669,0.3398,61120.0,61119.0,0.1407638]
[1719989358030,0.36692487,61120.0,61119.0,0.1407638]
[1719989358329,0.36792417,61120.0,61119.0,0.1467638]
[1719989359132,0.36792417,61120.0,61119.0,0.09115582]
[1719989361377,0.51052417,61120.0,61119.0,0.09115582]
[1719989361599,0.4834,61120.0,61119.0,0.09115582]
[1719989361758,0.51037452,61120.0,61119.0,0.09115582]
[1719989363340,0.51027341,61120.0,61119.0,0.09115582]
[1719989365280,0.51022196,61120.0,61119.0,0.09115582]
[1719989365700,0.51022165,61120.0,61119.0,0.09115582]
[1719989367268,0.36762165,61120.0,61119.0,0.09115582]
[1719989368310,0.36784418,61120.0,61119.0,0.1467638]
[1719989368537,0.36784418,61120.0,61119.0,0.09115582]
[1719989369420,0.36784418,61120.0,61119.0,0.011]
[1719989372844,0.40629756,61120.0,61119.0,0.011924]
[1719989373047,0.58489756,61120.0,61119.0,0.011924]
[1719989373842,0.52124121,61120.0,61119.0,0.011924]
[1719989375315,0.58279756,61120.0,61119.0,0.011924]
[1719989375761,0.58279756,61120.0,61109.0,0.37986382]
[1719989375762,2.25330838,61120.0,61109.0,0.37986382]
[1719989375960,0.0959,61111.0,61109.0,0.08015582]
[1719989376208,0.02704418,61110.0,61109.0,0.08015582]
[1719989376423,0.12704418,61110.0,61109.0,0.08015582]
[1719989378184,0.13369631,61110.0,61109.0,0.08015582]
[1719989378520,0.1,61110.0,61109.0,0.08015582]
[1719989378753,0.13369632,61110.0,61109.0,0.08015582]
[1719989379370,0.30819632,61110.0,61109.0,0.08015582]
[1719989379834,0.30819632,61110.0,61105.0,0.08015582]
[1719989379982,0.0959,61106.0,61105.0,0.08015582]
[1719989380187,0.12959632,61106.0,61105.0,0.08015582]
[1719989380389,0.22959632,61106.0,61105.0,0.08015582]
[1719989381157,0.1959,61106.0,61105.0,0.08015582]
[1719989381358,0.23382007,61106.0,61105.0,0.08015582]
[1719989382742,0.13792007,61106.0,61105.0,0.08015582]
[1719989382954,0.23382007,61106.0,61105.0,0.08015582]
[1719989383311,0.23682007,61106.0,61105.0,0.08015582]
[1719989383714,0.23382007,61106.0,61105.0,0.08015582]
[1719989384240,0.23682007,61106.0,61105.0,0.08015582]
[1719989384407,0.2019,61106.0,61105.0,0.08015582]
[1719989384619,0.23667472,61106.0,61105.0,0.08015582]
[1719989384818,0.23367472,61106.0,61105.0,0.08015582]
[1719989386490,0.40167472,61106.0,61105.0,0.08015582]
[1719989386868,0.40467472,61106.0,61105.0,0.08015582]
[1719989387213,0.23667472,61106.0,61105.0,0.08015582]